{"text_format":"1","workbook":"xlsx","n_sheets":4,"sheets":["Лист1","Лист2","Лист3","Чорновий лист"],"not_rendered":{"charts":0,"images":0,"macros":1,"external_links":0,"defined_names":2,"comments":2,"pivot_tables":0},"unopened":[],"bounds":{"document_bytes":16777216,"sheet_cells":100000,"rows_first":2000,"rows_last":500,"rows_between":2000,"halvings":0,"cell_chars":16384,"cell_head_chars":4096},"cells_cut":0,"cells_raw":0,"read":"whole","date_system":"1900"}

{"sheet":"Лист1","index":0,"n_rows":18,"n_cols":7,"rows_kept":18,"cut":false,"hidden":false,"merged":[[13,0,13,1],[15,0,15,1],[17,0,17,1],[1,6,1,7],[1,4,1,5],[3,0,3,1],[5,0,5,1],[7,0,7,1],[9,0,9,1],[11,0,11,1],[13,2,13,3],[11,2,11,6]]}
[]
[null,null,"Рахунок№:","07/07/12ВН","Дата завершення:",null,"2012-11-12"]
[]
["Повний звіт"]
[]
["Актуалізований звіт"]
[]
["Тільки акт"]
[]
["Телеграма"]
[]
["Марка авто",null,"QWERTY"]
[]
["Державний номер",null,"АВ 5895  Па"]
[]
["Замовник",null,3,null,"Інший:","Anger47"]
[]
["Сумма",null,400]

{"sheet":"Лист2","index":1,"n_rows":25,"n_cols":10,"rows_kept":25,"cut":false,"hidden":false,"merged":[[9,0,9,9],[10,0,10,9],[1,0,1,1],[6,0,6,1],[7,0,7,1],[6,2,6,7],[15,7,15,8],[16,7,16,8],[12,1,12,4],[12,7,12,8],[13,1,13,4],[13,7,13,8],[14,7,14,8],[14,1,14,4],[15,1,15,4],[24,8,24,9],[16,1,16,4],[17,7,17,8],[18,7,18,8],[19,7,19,8]]}
[]
["Постачальник"]
[]
[]
[]
[]
["Одержувач",null,"___________________________________________________________"]
["Платник",null,"той самий"]
[]
[{"$f":"CONCATENATE(\"Рахунок-фактура №\", Лист1!D2)","v":"Рахунок-фактура №07/07/12ВН"}]
[{"$f":"CONCATENATE(\"від \",TEXT(Лист1!G2, \"[$-FC22]d mmmm yyyy\"),\" року\")","v":"від 12 листопада 2012 року"}]
[]
["№","Повна назва товару",null,null,null,"Од. Вим","К-ть","Ціна без ПДВ",null,"Сумма без ПДВ"]
[1,"Визначення вартості заподіяної майнової шкоди транспортного засобу після ДТП  (додатковий виїзд на СТО)",null,null,null,"шт.",1,{"$f":"Лист1!C18","v":400},null,{"$f":"Лист1!C18","v":400}]
[2,{"$f":"CONCATENATE(Лист1!C12,\" держ. номер \",Лист1!C14,\" (\",IF(Другой=\"Написати іншого\",Лист1!F16,Другой),\")\")","v":"QWERTY держ. номер АВ 5895  Па (Anger47)"},null,null,null,"шт.",1,0,null,0]
[3,"Відправлення телеграми",null,null,null,"шт.",1,40,null,40]
[4,"Комісія згідно угоди",null,null,null,"шт.",1,{"$f":"H14*0.2","v":80},null,{"$f":"J14*0.2","v":80}]
[null,null,null,null,null,null,null,"Разом без ПДВ:",null,{"$f":"SUM(J14:J16)-J17","v":360}]
[null,null,null,null,null,null,null,"ПДВ:",null,0]
[null,null,null,null,null,null,null,"Всього з ПДВ:",null,{"$f":"SUM(J18:J19)","v":360}]
[]
[null,"Всього на суму:"]
[null,{"$f":"СУММ_ПРОП_ГРН(J20)","v":"Триста шістдесят гривень,  00 копійок"}]
[]
[null,"ПДВ: ",{"$f":"J19","v":0},null,null,null,"Виписав(ла):",null,"М.Ю.Довбня"]

{"sheet":"Лист3","index":2,"n_rows":18,"n_cols":10,"rows_kept":18,"cut":false,"hidden":false,"merged":[[21,2,21,5],[22,2,22,5],[23,2,23,5],[17,6,17,9],[17,2,17,5],[18,2,18,5],[19,2,19,5],[20,2,20,5],[11,0,11,2],[12,0,12,9],[14,4,14,9],[14,1,14,2],[7,1,7,5],[8,1,8,5],[9,1,9,5],[10,1,10,5],[7,7,7,8],[8,7,8,8],[9,7,9,8],[10,7,10,8],[6,7,6,8],[6,1,6,5],[1,0,1,9],[2,0,2,9],[3,0,3,9],[4,0,5,9]]}
[]
["Акт № 03/04"]
["здачі-прийомки виконаних робіт (послуг)"]
[{"$f":"CONCATENATE(\"складений _____________________ \",YEAR(Лист1!G2),\" р.\")","v":"складений _____________________ 2012 р."}]
["                     Ми, що нижче підписалися, ВИКОНАВЕЦЬ - ANGER47. з однієї сторони, та ЗАМОВНИК - ____________________________________, з другої сторони, склали цей акт про те, що наступні роботи (послуги):"]
[]
["№","Повна назва товару",null,null,null,null,"К-ть","Ціна без ПДВ",null,"Сумма без ПДВ"]
[1,{"$f":"Лист2!B14","v":"Визначення вартості заподіяної майнової шкоди транспортного засобу після ДТП  (додатковий виїзд на СТО)"},null,null,null,null,1,{"$f":"Лист2!H14","v":400},null,{"$f":"Лист2!J14","v":400}]
[2,{"$f":"CONCATENATE(Лист1!C12,\" держ. номер \",Лист1!C14,\" ()\")","v":"QWERTY держ. номер АВ 5895  Па ()"},null,null,null,null,1,{"$f":"Лист2!H15","v":0},null,{"$f":"Лист2!J15","v":0}]
[3,"Відправлення телеграми",null,null,null,null,1,{"$f":"Лист2!H16","v":40},null,{"$f":"Лист2!J16","v":40}]
[4,"Комісія згідно угоди",null,null,null,null,1,{"$f":"Лист2!H17","v":80},null,{"$f":"Лист2!J17","v":80}]
["виконані у повному обсязі."]
[{"$f":"CONCATENATE(\"Ціна робіт (послуг) відповідно до документу (Рахунок № \",Лист1!D2,\" від \",TEXT(Лист1!G2,\"dd.mm.yyyy\"),\" р.\",\") складає \",TEXT(Лист2!J20,\"0,00\"),\" грн.;\",)","v":"Ціна робіт (послуг) відповідно до документу (Рахунок № 07/07/12ВН від 12.11.2012 р.) складає 360,00 грн.;"}]
[{"$f":"CONCATENATE(\"ПДВ \",TEXT(Лист2!J19, \"0,00\"), \" грн.\")","v":"ПДВ 0,00 грн."}]
[null,{"$f":"Лист2!J20","v":360},null,null,{"$f":"CONCATENATE(\"(\",СУММ_ПРОП_ГРН(B15),\")\")","v":"(Триста шістдесят гривень,  00 копійок)"}]
[]
["ВИКОНАВЕЦЬ",null,null,null,null,null,"ЗАМОВНИК"]
[null,null,null,null,null,null,"_______________________________________"]

{"sheet":"Чорновий лист","index":3,"n_rows":26,"n_cols":7,"rows_kept":26,"cut":false,"hidden":false,"merged":[[5,15,5,16],[7,15,7,16],[10,15,10,16],[12,15,12,16],[12,6,12,12],[6,6,6,12],[7,6,7,12],[8,6,8,12],[10,6,10,12],[11,6,11,12],[26,6,26,12],[27,6,27,12],[28,6,28,12],[9,6,9,12],[19,6,19,12],[20,6,20,12],[21,6,21,12],[22,6,22,12],[23,6,23,12],[25,6,25,12],[13,6,13,12],[14,6,14,12],[15,6,15,12],[16,6,16,12],[18,6,18,12]]}
["СК \"PZU Україна\""]
["СК \"Країна\""]
["Написати іншого"]
[]
[]
[null,null,null,null,null,null,"Тут я попытаюсь росписать что мне необходимо:"]
[null,null,null,null,null,null,"1 - Помогите зделать так, что бы при виборе \"птички\""]
[null,null,null,null,null,null,"напротив \"Повний звіт\" или \"Актуалізований звіт\" "]
[null,null,null,null,null,null,"или \"Тільки акт\", другие птички становились не акти-"]
[null,null,null,null,null,null,"внимы, при нажатии на выбраную, все опять становились активными"]
[null,null,null,null,null,null,"И:  если вибор \"Повний звіт\", то текст на \"Лист2!B14\" -"]
[null,null,null,null,null,null,"не меняется. Если \"Актуалізований звіт\", то текст в етой ячейке "]
[null,null,null,null,null,null,"становится: \"Оформлення актуалізованого звіту"]
[null,null,null,null,null,null,"майнової шкоди транспортного засобу після ДТП  "]
[null,null,null,null,null,null,"(додатковий виїзд на СТО)\". А если \"Тільки акт\", то текст был: "]
[null,null,null,null,null,null,"\"Оформлення акту огляду транспортного засобу після ДТП"]
[null,null,null,null,null,null,"(додатковий виїзд на СТО) и Все ето было в ячейке \"Лист2!B14\" "]
[]
[null,null,null,null,null,null,"2 - Самое сложное: необходим макрос, где на Лист1 при виборе "]
[null,null,null,null,null,null,"\"птички\" (Ні) - ПРОПАДАЛА целая строка с \"Лист2\", но при етом"]
[null,null,null,null,null,null,"не сбивались формулы. А цыфра \"4\" с ячейки Лист2!A17"]
[null,null,null,null,null,null,"менялась на цыфру \"3\". Как вариант: при установке \"птички\" там "]
[null,null,null,null,null,null,"где \"Ні\", место где \"Так\" - становилось не активным. "]
[null,null,null,null,null,null,"а если вибирается \"Так\", то ни чего не меняется."]
[]
[null,null,null,null,null,null,"3 -Вопрос решон на Листе2"]